Cogmind - Beta 13 @@@ ROGUE MODE // 2024.04.30 @ 22:54:34 Player: GayPredator Result: Self-destructed Performance ------------- Evolutions (6) 3000 Regions Visited (11) 2200 Robots Destroyed (74) 370 Value Destroyed (2431) 2431 Prototype IDs (10) 200 Alien Tech Used (0) 0 Bonus (931) 931 TOTAL SCORE: 9132 Bonus ------- High Alert Combat Kills 431 Entered DSFs 500 Cogmind --------- Core Integrity 1067/1150 Matter 51/300 Energy 140/310 System Corruption 0% Temperature Cool (6) Movement Hovering (52) Location -4/Factory Parts ------- > --- POWER (2) -------- Fission Core > --- PROPULSION (5) --- Antigrav System Antigrav System Antigrav System Antigrav System Improved Gyrokinetic Inverter > --- UTILITY (7) ------ Improved Trap Scanner Active Sensor Suite ECM Suite Backup Plating VII Advanced System Restoration Module > --- WEAPON (5) ------- (None) > --- INVENTORY (5) ---- Improved Gravmag System Improved Propulsion Shielding Advanced System Restoration Module Smartbomb Launcher Peak State ------------ > --- POWER ------------ Fission Core Neutrino Core > --- PROPULSION ------- Improved Gravmag System Antigrav System Antigrav System Antigrav System Antigrav System > --- UTILITY ---------- Improved Trap Scanner Active Sensor Suite Improved Propulsion Shielding Layered Light Armor Plating Advanced System Restoration Module > --- WEAPON ----------- Heavy Machine Gun Smartbomb Launcher Micro-nuke Launcher Power Maul > --- INVENTORY -------- Improved Gravmag System ECM Suite Improved Propulsion Shielding Advanced System Restoration Module [Rating: 114] Favorites ----------- Power Light Ion Engine Engine Light Ion Engine Power Core Neutrino Core Propulsion Improved VTOL Module Leg Aluminum Leg Wheel Wheel Hover Unit Antigrav System Flight Unit Improved VTOL Module Utility Weight Redist. System Device Weight Redist. System Storage Small Storage Unit Processor Visual Processing Unit Protection Improved Propulsion Shielding Weapon Particle Gun Energy Gun Particle Gun Ballistic Gun Heavy Machine Gun Launcher Mini Grenade Launcher Impact Weapon Power Maul Build | -11 -10 -10 -9 -9 -8 -8 -7 -6 -5 -5 -4 ------- Run | Yrd Mat Min Mat Min Mat Sto Fac Fac Fac DSF Fac Slots Evolved 12 | . . . 2 . 2 . 2 2 2 . 2 Power 1 | . . . . . 1 . . . . . . Propulsion 3 | . . . 2 . . . . . 1 . . Utility 5 | . . . . . 1 . 2 1 1 . . Weapon 3 | . . . . . . . . 1 . . 2 Parts Attached 103 | 6 7 7 7 2 20 14 17 2 . 11 10 Power 17 | 1 . 1 . . 5 3 3 . . 1 3 Engine 11 | 1 . 1 . . 4 3 2 . . . . Core 6 | . . . . . 1 . 1 . . 1 3 Reactor . | . . . . . . . . . . . . Propulsion 23 | 2 4 . 2 2 2 2 2 1 . 5 1 Treads . | . . . . . . . . . . . . Leg 2 | . 2 . . . . . . . . . . Wheel 2 | 2 . . . . . . . . . . . Hover 6 | . . . . . . . . . . 5 1 Flight 13 | . 2 . 2 2 2 2 2 1 . . . Utility 46 | 1 2 6 4 . 11 7 8 1 . 3 3 Device 35 | . 1 6 3 . 11 5 5 1 . 1 2 Storage 1 | 1 . . . . . . . . . . . Processor 2 | . 1 . 1 . . . . . . . . Hackware . | . . . . . . . . . . . . Protection 8 | . . . . . . 2 3 . . 2 1 Artifact . | . . . . . . . . . . . . Weapon 17 | 2 1 . 1 . 2 2 4 . . 2 3 Energy Gun 3 | 2 1 . . . . . . . . . . Energy Cannon . | . . . . . . . . . . . . Ballistic Gun 1 | . . . . . . . . . . . 1 Ballistic Cannon . | . . . . . . . . . . . . Launcher 9 | . . . 1 . 1 2 2 . . 1 2 Special Weapon . | . . . . . . . . . . . . Impact Weapon 4 | . . . . . 1 . 2 . . 1 . Slashing Weapon . | . . . . . . . . . . . . Piercing Weapon . | . . . . . . . . . . . . Special Melee Weapon . | . . . . . . . . . . . . Unidentified Prototypes 5 | . . 1 . . . 2 1 . . 1 . Parts Lost 20 | . . . . . 4 6 6 . . . 4 Power 8 | . . . . . 1 4 2 . . . 1 Propulsion 1 | . . . . . . . 1 . . . . Utility 6 | . . . . . 1 1 3 . . . 1 Weapon 5 | . . . . . 2 1 . . . . 2 Highest Loss Streak 4 | . . . . . 4 3 3 . . . 4 To Critical Strikes . | . . . . . . . . . . . . Average Slot Usage (%) 81 | . 86 85 83 100 90 91 71 44 41 71 73 Engine 9 | . 14 14 11 11 13 12 4 6 5 5 1 Core 1 | . . . . . . . 2 . . 2 7 Hover 3 | . . . . . . . . . . 26 26 Flight 25 | . 3 28 36 44 36 36 25 16 17 1 . Device 17 | . 2 13 11 22 24 23 20 7 5 8 15 Protection 3 | . . . . . . 2 5 6 5 15 8 Energy Gun 6 | . 28 28 11 11 6 . . . . . . Launcher 6 | . . . 10 11 8 8 5 6 5 5 4 Impact Weapon 3 | . . . . . . 9 6 . . 3 5 Naked Turns . | . . . . . . . . . . . . Heaviest Build 65 | 13 15 18 18 11 20 25 21 16 16 51 65 Greatest Support 56 | 20 20 14 22 22 24 25 21 16 16 54 56 Greatest Overweight (x) 3 | . 1 2 1 . 1 3 1 1 . 1 1 Average Overweight (x) . | . . . . . . . . . . . . Largest Inventory Capacity 8 | 8 8 5 5 5 5 5 5 5 5 5 5 Average Capacity 5 | 6 7 5 5 5 5 5 5 5 5 5 5 Most Carried 5 | 2 3 5 5 5 5 5 5 5 5 5 5 Average Carried 3 | 1 2 4 4 5 3 3 2 4 5 4 4 Final Capacity 8 | 8 5 5 5 5 5 5 5 5 5 5 5 Final Carried 5 | 2 3 5 5 5 5 4 5 5 5 5 5 Class Distribution -------------------- 32% | Sprinter 28% | Mutant 23% | Scavenger-Sprinter 9% | Assassin 3% | Ninja Dominant Class ---------------- Mutant | -10/Materials Mutant | -10/Mines Mutant | -9/Materials Scavenger-Sprinter | -9/Mines Scavenger-Sprinter | -8/Materials Sprinter | -8/Storage Sprinter | -7/Factory Mutant | -6/Factory Mutant | -5/Factory Mutant | -5/DSF Assassin | -4/Factory Resources | -11 -10 -10 -9 -9 -8 -8 -7 -6 -5 -5 -4 ----------- Run | Yrd Mat Min Mat Min Mat Sto Fac Fac Fac DSF Fac Matter Collected 1666 | 260 70 70 17 128 126 362 111 194 . 149 179 Remotely . | . . . . . . . . . . . . Salvage Created 1861 | 98 138 53 17 75 220 592 534 . . . 134 Parts 86 | . 6 3 3 5 9 23 30 . . . 7 Haulers Intercepted 3 | . 1 . . . 1 . 1 . . . . Recyclers Shooed 3 | . 1 . . 1 . 1 . . . . . Parts Field Recycled . | . . . . . . . . . . . . Retrieved Matter . | . . . . . . . . . . . . Parts Self-Destructed . | . . . . . . . . . . . . Prevented . | . . . . . . . . . . . . Kills | -11 -10 -10 -9 -9 -8 -8 -7 -6 -5 -5 -4 ------- Run | Yrd Mat Min Mat Min Mat Sto Fac Fac Fac DSF Fac Combat Hostiles Destroyed 45 | . 2 1 1 5 2 15 15 . . . 4 Guns 4 | . 2 . . 1 1 . . . . . . AOE 36 | . . 1 1 4 1 10 15 . . . 4 Classes Destroyed 15 | 1 2 1 1 1 3 3 2 . . . 1 Worker 6 | . . . . . 1 . 5 . . . . Builder 5 | . . . . . 2 . 1 . . . 2 Tunneler 2 | . . . . . 2 . . . . . . Hauler 3 | . 1 . . . 1 . 1 . . . . Recycler 7 | 1 . 1 . 1 . 2 2 . . . . Operator 3 | . . . . . . 1 2 . . . . Watcher 4 | . . . 1 . 1 1 1 . . . . Swarmer 17 | . . 1 1 4 . 7 4 . . . . Grunt 16 | . 2 . . . 2 4 8 . . . . Duelist 1 | . . . . . . 1 . . . . . Protector 1 | . . . . . . . 1 . . . . Sentry 5 | . . . . . . 3 1 . . . 1 Hunter 2 | . . . . . . . . . . . 2 Programmer 2 | . . . . . . . 1 . . . 1 Assembled 1 | . . . . 1 . . . . . . . Best Kill Streak 18 | 1 1 1 2 4 3 8 18 . . . 5 Combat Bots Only 9 | . 1 1 1 4 2 8 9 . . . 4 Max Kills in Single Turn 13 | 1 1 1 2 2 1 3 13 . . . 1 Gunslinging . | . . . . . . . . . . . . Exploded 5 | . . 1 1 2 1 3 5 . . . 1 Melee . | . . . . . . . . . . . . Uniques/NPCs Destroyed . | . . . . . . . . . . . . Combat | -11 -10 -10 -9 -9 -8 -8 -7 -6 -5 -5 -4 -------- Run | Yrd Mat Min Mat Min Mat Sto Fac Fac Fac DSF Fac Hostile Shots Fired 323 | . 9 9 6 8 21 105 105 1 . 4 55 Missed 174 | . 2 5 1 4 11 58 68 . . 2 23 Damage Taken 2696 | . 86 24 44 78 225 819 512 18 . 46 844 Core 599 | . 21 12 9 . 21 213 240 . . . 83 Absorbed by Shields 60 | . . . . . . . 60 . . . . Redirected to Shielding 198 | . . . . . . 63 56 . . . 79 Ignored by Resistances 31 | . . . . . . . 31 . . . . Regen/Repaired (Parts) 138 | . . . . . 72 . 32 34 . . . Core Remaining (%) 86 | 100 . 86 . 97 . 57 65 100 . 100 . Volleys Fired 111 | 3 13 3 1 5 29 20 19 . . . 18 Largest 2 | 2 2 2 1 1 2 1 1 . . . 1 Hottest 115 | 90 115 115 33 65 98 36 30 . . . 49 Shots Fired 132 | 6 26 4 1 5 33 20 19 . . . 18 Gun 60 | 6 26 4 . 1 21 . . . . . 2 Cannon . | . . . . . . . . . . . . Launcher 72 | . . . 1 4 12 20 19 . . . 16 Special . | . . . . . . . . . . . . Kinetic 2 | . . . . . . . . . . . 2 Thermal 58 | 6 26 4 . 1 21 . . . . . . Explosive 59 | . . . 1 4 12 7 19 . . . 16 Electromagnetic 13 | . . . . . . 13 . . . . . Robot Hit Streak 12 | 5 6 1 . 5 6 1 8 . . . 12 Robot Miss Streak 3 | . 2 1 . . 3 3 1 . . . . Penetration Max . | . . . . . . . . . . . . Secondary Targets . | . . . . . . . . . . . . Shots Hit Robots 74 | 5 15 2 . 4 19 12 13 . . . 4 Core Hits 95 | 2 6 1 2 3 12 18 35 . . . 16 Critical Kills . | . . . . . . . . . . . . Critical Parts Destroyed 6 | . . . . . 1 4 1 . . . . Critical Strikes 11 | 1 2 . . . 3 4 1 . . . . Burn 5 | 1 2 . . . 2 . . . . . . Smash 6 | . . . . . 1 4 1 . . . . Melee Attacks 33 | . . . . . 2 24 6 . . . 1 Impact 33 | . . . . . 2 24 6 . . . 1 Slashing . | . . . . . . . . . . . . Piercing . | . . . . . . . . . . . . Sneak Attacks 5 | . . . . . 1 3 1 . . . . Combat Hostiles . | . . . . . . . . . . . . Follow-up Attacks . | . . . . . . . . . . . . Damage Inflicted 7358 | 61 192 29 48 488 708 1851 2954 . . . 1027 Guns 539 | 61 185 29 . 16 207 . . . . . 41 Cannons . | . . . . . . . . . . . . Explosions 6096 | . . . 48 472 457 1367 2766 . . . 986 Melee 716 | . . . . . 44 484 188 . . . . Ramming 7 | . 7 . . . . . . . . . . Kinetic 41 | . . . . . . . . . . . 41 Thermal 2282 | 61 185 29 . 16 207 . 1784 . . . . Explosive 3526 | . . . 48 472 457 581 982 . . . 986 Electromagnetic 786 | . . . . . . 786 . . . . . Impact 716 | . . . . . 44 484 188 . . . . Slashing . | . . . . . . . . . . . . Piercing . | . . . . . . . . . . . . Highest Corruption 2 | . . . . . . 2 . 2 . . . Average Corruption 1 | . . . . . . 1 . 2 . . . Corruption Purged . | . . . . . . . . . . . . Corruption Blocked . | . . . . . . . . . . . . Effects 2 | . . . . . . 1 . 1 . . . Parts Rejected 1 | . . . . . . 1 . . . . . Data Loss (minor) 1 | . . . . . . . . 1 . . . Overload Shots . | . . . . . . . . . . . . Overflow Damage 1123 | . . . . 104 123 309 566 . . . 21 Projectiles . | . . . . . . . . . . . . Explosions 673 | . . . . 104 79 56 413 . . . 21 Melee 450 | . . . . . 44 253 153 . . . . Knockbacks 5 | . . . . . . 4 1 . . . . Impact 4 | . . . . . . 3 1 . . . . Kinetic . | . . . . . . . . . . . . Secondary 1 | . . . . . . 1 . . . . . Self-Inflicted Damage 711 | . . . . 40 90 172 190 . . . 219 Shots 17 | . . . . 1 2 8 3 . . . 3 Rammed . | . . . . . . . . . . . . Targets Rammed 1 | . 1 . . . . . . . . . . Kicked 1 | . 1 . . . . . . . . . . Crushed . | . . . . . . . . . . . . Highest Temperature 349 | 90 240 60 . 26 182 24 33 . . . 349 Average Temperature 97 | 46 87 25 . 8 87 6 12 . . . 143 Received Heat Transfer 464 | . 48 . . . 63 198 110 9 . 9 27 Effects 2 | . 1 . . . . . . . . . 1 Energy Bleed 2 | . 1 . . . . . . . . . 1 Siege Activations . | . . . . . . . . . . . . Robots Corrupted 5 | . . . . . . 5 . . . . . Combat Hostiles 4 | . . . . . . 4 . . . . . Parts Fried 8 | . . . . . 1 6 1 . . . . Impact Corruptions 20 | . . . . . 2 12 6 . . . . Robots Melted . | . . . . . . . . . . . . Combat Hostiles . | . . . . . . . . . . . . Parts Melted 6 | 1 2 . . . 3 . . . . . . Heat Transferred 2905 | 235 643 74 . 37 666 . 1250 . . . . Parts Sabotaged . | . . . . . . . . . . . . Parts Stolen . | . . . . . . . . . . . . Parts Stripped . | . . . . . . . . . . . . Power Chain Reactions 1 | . . . . . . 1 . . . . . Alert | -11 -10 -10 -9 -9 -8 -8 -7 -6 -5 -5 -4 ------- Run | Yrd Mat Min Mat Min Mat Sto Fac Fac Fac DSF Fac Peak Influence 1426 | 5 94 56 94 173 282 888 1426 728 356 249 930 Initial 698 | . 3 36 15 36 66 43 403 698 356 249 130 Average 361 | 1 58 43 38 158 114 430 895 715 356 249 453 Maximum Alert Level 4 | . . . . . 1 3 4 3 1 1 3 Low Security (%) 50 | 100 100 100 100 100 93 14 . . . . 28 Level 1 9 | . . . . . 6 23 . . 100 100 14 Level 2 24 | . . . . . . 55 51 40 . . 38 Level 3 6 | . . . . . . 6 2 59 . . 18 Level 4 7 | . . . . . . . 46 . . . . Level 5 . | . . . . . . . . . . . . High Security . | . . . . . . . . . . . . Max Security . | . . . . . . . . . . . . Squads Dispatched 19 | . 1 . . . 1 4 6 . . 1 6 Investigation 4 | . 1 . . . . . 1 . . . 2 Extermination 2 | . . . . . . . 1 . . . 1 Reinforcement 9 | . . . . . 1 2 2 . . 1 3 Assault 2 | . . . . . . 1 1 . . . . Garrison 2 | . . . . . . 1 1 . . . . Intercept . | . . . . . . . . . . . . Searches Triggered . | . . . . . . . . . . . . Construction Impeded 3 | . . . . . 1 . 1 . . . 1 Haulers Reinforced . | . . . . . . . . . . . . Active Scanning Responses 2 | . . . . . . . . . . . 2 Cargo Convoy Interrupts . | . . . . . . . . . . . . Stealth | -11 -10 -10 -9 -9 -8 -8 -7 -6 -5 -5 -4 --------- Run | Yrd Mat Min Mat Min Mat Sto Fac Fac Fac DSF Fac Distress Signals 7 | . . . 1 . 1 1 . . . . 4 Communications Jammed . | . . . . . . . . . . . . Distress Signals . | . . . . . . . . . . . . Times Spotted 126 | . 4 3 6 5 17 43 20 2 . 4 22 Peak Tracking Total 18 | . 2 3 5 4 6 18 7 2 . 2 10 Tactical Retreats 13 | . . . . . 3 4 3 1 . . 2 Traps | -11 -10 -10 -9 -9 -8 -8 -7 -6 -5 -5 -4 ------- Run | Yrd Mat Min Mat Min Mat Sto Fac Fac Fac DSF Fac Traps Triggered 3 | . . . . . . 1 1 1 . . . Indirectly . | . . . . . . . . . . . . Trap Hack Attempts . | . . . . . . . . . . . . Triggered . | . . . . . . . . . . . . Disarmed . | . . . . . . . . . . . . Reprogrammed . | . . . . . . . . . . . . Reused . | . . . . . . . . . . . . Traps Extracted . | . . . . . . . . . . . . Installed . | . . . . . . . . . . . . Triggered . | . . . . . . . . . . . . Machines | -11 -10 -10 -9 -9 -8 -8 -7 -6 -5 -5 -4 ---------- Run | Yrd Mat Min Mat Min Mat Sto Fac Fac Fac DSF Fac Machines Disabled 40 | . . . . . 4 5 27 . . . 4 Max in Single Turn 12 | . . . . . 2 1 12 . . . 3 Garrison Access 2 | . . . . . . 1 1 . . . . Machines Repaired . | . . . . . . . . . . . . Machines Dismantled . | . . . . . . . . . . . . Machines Sabotaged . | . . . . . . . . . . . . Overloaded Fab Kills . | . . . . . . . . . . . . Hacking | -11 -10 -10 -9 -9 -8 -8 -7 -6 -5 -5 -4 --------- Run | Yrd Mat Min Mat Min Mat Sto Fac Fac Fac DSF Fac Machines Accessed 33 | . 1 1 9 . 4 5 7 2 1 . 3 Terminals 23 | . 1 . 8 . 3 5 2 . 1 . 3 Fabricators . | . . . . . . . . . . . . Repair Stations 6 | . . . . . 1 . 4 1 . . . Recycling Units 2 | . . . 1 . . . 1 . . . . Scanalyzers 1 | . . . . . . . . 1 . . . Garrison Access . | . . . . . . . . . . . . Total Hacks 83 | . 3 1 22 . 13 13 18 4 1 . 8 Successful 44 | . 1 1 9 . 9 9 6 2 1 . 6 Failed 38 | . 2 . 12 . 4 4 12 2 . . 2 Catastrophic 6 | . . . 1 . 1 2 . . . . 2 Database Lockouts 1 | . . . 1 . . . . . . . . Manual 33 | . . . 17 . 4 8 1 . . . 3 Terminals 59 | . 3 . 20 . 9 13 5 . 1 . 8 Fabricators . | . . . . . . . . . . . . Repair Stations 17 | . . . . . 4 . 11 2 . . . Recycling Units 4 | . . . 2 . . . 2 . . . . Scanalyzers 2 | . . . . . . . . 2 . . . Garrison Access . | . . . . . . . . . . . . Terminal Hacks 26 | . 1 1 5 . 4 7 1 . 1 . 6 Record 1 | . . . . . . . . . . . 1 Part Schematic 1 | . . . 1 . . . . . . . . Prototype ID Bank 3 | . . . 1 . . 1 . . . . 1 Open Door 3 | . . 1 . . . 2 . . . . . Open DSF 1 | . . . . . . . . . 1 . . Level Access Points 1 | . . . 1 . . . . . . . . Branch Access Points 1 | . . . . . 1 . . . . . . Emergency Access Points 1 | . . . . . . . . . . . 1 Terminal Index 1 | . . . 1 . . . . . . . . Alert Level 1 | . . . . . 1 . . . . . . Unreport Threat 2 | . . . . . 1 . 1 . . . . Locate Traps 4 | . 1 . 1 . . 1 . . . . 1 Dispatch Records 1 | . . . . . . 1 . . . . . Recall Investigation 2 | . . . . . . 1 . . . . 1 Zone Layout 3 | . . . . . 1 1 . . . . 1 Fabricator Hacks . | . . . . . . . . . . . . Repair Station Hacks 9 | . . . . . 3 . 4 2 . . . Scan Component 4 | . . . . . 1 . 2 1 . . . Repair 4 | . . . . . 1 . 2 1 . . . Refit 1 | . . . . . 1 . . . . . . Recycling Unit Hacks 3 | . . . 2 . . . 1 . . . . Report Inventory 2 | . . . 1 . . . 1 . . . . Retrieve Components 1 | . . . 1 . . . . . . . . Scanalyzer . | . . . . . . . . . . . . Garrison Access Hacks . | . . . . . . . . . . . . Unauthorized Hacks 6 | . . . 2 . 2 2 . . . . . Terminals 6 | . . . 2 . 2 2 . . . . . Botnet 6 | . . . 2 . 2 2 . . . . . Fabricators . | . . . . . . . . . . . . Repair Stations . | . . . . . . . . . . . . Recycling Units . | . . . . . . . . . . . . Scanalyzers . | . . . . . . . . . . . . Garrison Access . | . . . . . . . . . . . . Data Cores Recovered . | . . . . . . . . . . . . Used . | . . . . . . . . . . . . Hacking Detections 27 | . 1 . 7 . 3 4 7 1 1 . 3 Full Trace Events 3 | . 1 . . . . 1 1 . . . . Feedback Events . | . . . . . . . . . . . . Feedback Blocked . | . . . . . . . . . . . . Robot Schematics Acquired . | . . . . . . . . . . . . Robots Built . | . . . . . . . . . . . . Authchips . | . . . . . . . . . . . . Time . | . . . . . . . . . . . . Total Robot Build Rating . | . . . . . . . . . . . . Part Schematics Acquired 1 | . . . 1 . . . . . . . . Parts Built . | . . . . . . . . . . . . Authchips . | . . . . . . . . . . . . Time . | . . . . . . . . . . . . Total Part Build Rating . | . . . . . . . . . . . . Parts Repaired 3 | . . . . . 1 . 1 1 . . . Time 168 | . . . . . 32 . 76 60 . . . Parts Recycled . | . . . . . . . . . . . . Recycled Matter . | . . . . . . . . . . . . Retrieved Matter . | . . . . . . . . . . . . Retrieved Components 3 | . . . 3 . . . . . . . . Parts Scanalyzed . | . . . . . . . . . . . . Part Schematics Acquired . | . . . . . . . . . . . . Parts Damaged . | . . . . . . . . . . . . Bothacking | -11 -10 -10 -9 -9 -8 -8 -7 -6 -5 -5 -4 ------------ Run | Yrd Mat Min Mat Min Mat Sto Fac Fac Fac DSF Fac Used RIF Installer . | . . . . . . . . . . . . Robots Hacked . | . . . . . . . . . . . . Non-combat . | . . . . . . . . . . . . Combat . | . . . . . . . . . . . . Robot Hacks Applied . | . . . . . . . . . . . . Relay Couplers Released 4 | . . . . . . 2 2 . . . . Machine Destruction 4 | . . . . . . 2 2 . . . . Fabnet Peak Effective % . | . . . . . . . . . . . . Robots Rewired . | . . . . . . . . . . . . Allies Hacked . | . . . . . . . . . . . . Hacks Repelled . | . . . . . . . . . . . . Allies | -11 -10 -10 -9 -9 -8 -8 -7 -6 -5 -5 -4 -------- Run | Yrd Mat Min Mat Min Mat Sto Fac Fac Fac DSF Fac Total Allies . | . . . . . . . . . . . . Largest Group . | . . . . . . . . . . . . Highest-Rated Group . | . . . . . . . . . . . . Highest-Rated Ally . | . . . . . . . . . . . . Total Orders 21 | . . 5 5 . 8 3 . . . . . ROAM 5 | . . 2 2 . 1 . . . . . . EXPLORE 12 | . . 2 1 . 6 3 . . . . . RETURN 4 | . . 1 2 . 1 . . . . . . Ally Attacks 16 | . . 4 1 . 8 3 . . . . . Total Damage . | . . . . . . . . . . . . Kills . | . . . . . . . . . . . . Allies Corrupted . | . . . . . . . . . . . . Allies Melted . | . . . . . . . . . . . . Intel | -11 -10 -10 -9 -9 -8 -8 -7 -6 -5 -5 -4 ------- Run | Yrd Mat Min Mat Min Mat Sto Fac Fac Fac DSF Fac Robot Analysis Total . | . . . . . . . . . . . . Derelict Logs Recovered 3 | . . 2 . 1 . . . . . . . Drone Launches 20 | . . 6 2 . 9 3 . . . . . Drone Recoveries 4 | . . 2 1 . 1 . . . . . . Exploration | -11 -10 -10 -9 -9 -8 -8 -7 -6 -5 -5 -4 ------------- Run | Yrd Mat Min Mat Min Mat Sto Fac Fac Fac DSF Fac Turns Passed 2220 | 52 118 247 123 84 397 382 382 113 4 61 257 Spaces Moved 3545 | 39 82 552 252 203 637 408 810 154 14 88 306 Core 8 | 4 1 . . . . 3 . . . . . Treads . | . . . . . . . . . . . . Legs 11 | . 11 . . . . . . . . . . Wheels 82 | 35 47 . . . . . . . . . . Hover 389 | . . . . . . . . . . 83 306 Flight 3055 | . 23 552 252 203 637 405 810 154 14 5 . Fastest Speed 27 | 50 37 37 31 28 27 27 27 30 30 30 44 Average Speed 36 | 76 77 37 38 28 27 28 30 33 30 44 62 Slowest Speed 200 | 80 190 197 114 32 102 200 99 106 30 120 102 Overloaded Moves . | . . . . . . . . . . . . Propulsion Burnouts . | . . . . . . . . . . . . Robots Hopped 13 | . . 1 2 . . 6 4 . . . . Cave-ins Triggered . | . . . . . . . . . . . . Exploration Rate (%) 37 | 4 20 88 33 44 33 66 31 5 . 79 12 Regions Visited 11 Branch Regions 3 Pre-discovered Areas . | . . . . . . . . . . . . Known Exits Taken 4 | . . . 1 1 1 . . . 1 . . Unknown Exits Taken 6 | 1 1 1 . . . 1 1 1 . . . Scrap Searched 4 | . . 3 . 1 . . . . . . . Spaces Dug 32 | . . . . . 1 6 3 . . . 22 Terrain Destroyed 531 | . . . 2 42 95 71 105 . . . 216 Melee 11 | . . . . . 1 6 3 . . . 1 Projectile . | . . . . . . . . . . . . AOE 520 | . . . 2 42 94 65 102 . . . 215 Terrain Rammed . | . . . . . . . . . . . . Walls Destroyed . | . . . . . . . . . . . . Machines Disabled . | . . . . . . . . . . . . Actions | -11 -10 -10 -9 -9 -8 -8 -7 -6 -5 -5 -4 --------- Run | Yrd Mat Min Mat Min Mat Sto Fac Fac Fac DSF Fac Total 4272 | 52 109 588 276 223 820 604 914 214 13 107 352 Wait 393 | . . 16 8 12 114 135 44 56 . . 8 Move 3509 | 38 81 549 247 202 636 395 802 153 13 87 306 Hop 12 | . . 1 2 . . 6 3 . . . . Pick Up 29 | 4 1 2 5 . 4 1 8 . . 4 . Fast Attach 62 | 5 7 3 3 2 10 10 7 2 . 8 5 Attach 36 | 1 . 4 4 . 9 3 9 . . 3 3 Detach 28 | . . 5 1 . 7 3 8 1 . . 3 Swap 5 | . . . . . 1 1 1 . . . 2 Drop 53 | 1 6 5 5 2 8 6 7 2 . 5 6 Fire 111 | 3 13 3 1 5 29 20 19 . . . 18 Melee 33 | . . . . . 2 24 6 . . . 1 Ram . | . . . . . . . . . . . . Kick 1 | . 1 . . . . . . . . . . Crush . | . . . . . . . . . . . . Escape Stasis . | . . . . . . . . . . . . Rewire . | . . . . . . . . . . . . Trap . | . . . . . . . . . . . . Miscellaneous . | . . . . . . . . . . . . Route ------- -11/Scrapyard -10/Materials -10/Mines -9/Materials (discovered 5 exits: *Mat x3 / *Min x2) -9/Mines -8/Materials (discovered 3 exits: *Fac / *Sto x2) -8/Storage -7/Factory -6/Factory -5/Factory -5/DSF -4/Factory History --------- Turn | Location | Event 20 | -11/Scrapyard | Discovered new exit (range 15) 53 | -11/Scrapyard | Entered Materials 143 | -10/Materials | Discovered new exit (range 8) 171 | -10/Materials | Entered Mines 175 | -10/Mines | Learned Materials emergency access door positions 190 | -10/Mines | Found the Drone Emporium 191 | -10/Mines | Found Prototype Device 191 | -10/Mines | Identified Bomb Drone Bay 198 | -10/Mines | Met a Derelict bent on vengeance 268 | -10/Mines | Received a Rocket Launcher from a helpful Derelict 358 | -10/Mines | Build established: Mutant 413 | -10/Mines | Discovered new exit (range 5) 418 | -10/Mines | Entered Materials 418 | -9/Materials | Evolved 2 slots: Propulsion x2 419 | -9/Materials | Identified exit to Mines 431 | -9/Materials | Central database locked down 518 | -9/Materials | Discovered new exit (range 8) 521 | -9/Materials | Identified exit to Materials 541 | -9/Materials | Entered Mines 550 | -9/Mines | Assembled infested the area 587 | -9/Mines | Discovered exit to Materials (range 13) 625 | -9/Mines | Entered Materials 625 | -8/Materials | Evolved 2 slots: Power x1, Utility x1 626 | -8/Materials | Identified exit to Storage 791 | -8/Materials | Build established: Scavenger-Sprinter 932 | -8/Materials | Discovered new exit (range 13) 946 | -8/Materials | Lost 4 parts (1p1u2w) 969 | -8/Materials | Lost 6 allies 990 | -8/Materials | Repaired Hvy. Hammer? 1022 | -8/Materials | Entered Storage 1400 | -8/Storage | Discovered new exit (range 9) 1404 | -8/Storage | Entered Factory 1404 | -7/Factory | Evolved 2 slots: Utility x2 1407 | -7/Factory | Destroyed 8 combat bots 1416 | -7/Factory | Lost 3 parts (2p1u) 1426 | -7/Factory | Build established: Sprinter 1642 | -7/Factory | Destroyed 9 combat bots 1661 | -7/Factory | Lost 3 parts (2p1n) 1695 | -7/Factory | Repaired Mni. Grenade Launcher 1772 | -7/Factory | Discovered new exit (range 15) 1786 | -7/Factory | Entered another Factory area 1786 | -6/Factory | Evolved 2 slots: Utility x1, Weapon x1 1881 | -6/Factory | Repaired Imp. VTOL Module 1894 | -6/Factory | Discovered new exit (range 15) 1899 | -6/Factory | Entered another Factory area 1899 | -5/Factory | Evolved 2 slots: Propulsion x1, Utility x1 1903 | -5/Factory | Identified exit to DSF 1903 | -5/Factory | Entered DSF 1904 | -5/DSF | Joined Warlord attack on 0b10 via DSF 1928 | -5/DSF | Additional patrols routed to DSF 1932 | -5/DSF | Found Prototype Device 1932 | -5/DSF | Identified Active Sensor Suite 1954 | -5/DSF | Discovered new exit (range 16) 1958 | -5/DSF | Lost 5 allies 1963 | -5/DSF | Identified exit to Factory 1964 | -5/DSF | Entered Factory 1964 | -4/Factory | Evolved 2 slots: Weapon x2 2014 | -4/Factory | 7 allies followed out of DSF 2071 | -4/Factory | Lost 5 allies 2221 | -4/Factory | Self-destructed Last Messages --------------- 02193_ Repair Station disabled. 02193_ Backup Propulsion VII tumbles out of repair station. 02193_ Backup Plating VII tumbles out of repair station. 02193_ Backup Laser VII tumbles out of repair station. 02193_ Micro-nuke Launcher destroyed. 02193_ Destroyed Micro-nuke Launcher. 02193_ Fusion Modulator explodes. 02193_ Backup Power VII tumbles out of repair station. 02193_ Penetrated by Slug. 02193_ Neutrino Core destroyed. 02193_ K-01 Serf collects debris. 02195_ Acquired Backup Plating VII. 02196_ Penetrated by Slug. 02196_ K-01 Serf collects debris. 02199_ Overheating: Energy bleed (-10). 02199_ K-01 Serf collects debris. 02214_ ALERT: Rogue bot located, Programmers report to Factory Zone 9F. 02221_ Power Maul destroyed. Map ----- +----------------------------------------------------+ | # # "" #??????????????????????? | | #### == ] ??????????????????????????? | | ???# == ! ??????????????????????????????? | | ???# ##??????????????????????????????? | | ???####""" #??????????????????????????????? | | ?????##" #??????????????????????????????? | | ######" #??????????????????????????????? | | # #??????????????????????????????? | | " [ =#??????????????????????????????? | | " "##??????????????????????????????? | | " "#?????????s?????????????????????? | | #" "#????????? s ???????????????????? | | #" " ?????? "???????????????????? | | #" #"""" ??? """ #??????????????? | | #"""""""""#"""" ??? """ #??????????????? | | ### # ###"""" ???? #??????????????? | | #?#######??????????? #??????????????? | | #??????????????????? gA #??????????????? | | #??????????????????? !! A #??????????????? | | #######??????????????????? ! #####??????????? | | #????????????????????????? ??????????? | | ###??################+#### ?????????? | | #### ?????????? | | ????????? | | ????????? | | @ ????????? | | "" """" ????????? | | "" """" #################+### ????????? | | "" """" #???????????????????????? ?????????? | | "" """" #?????????????????????????????????????? | | "" """" #?????????????????????????????????????? | | "" """" #?????????????????????????????????????? | | #?????????????????????????????????????? | | """" #?????????????????????????????????????? | | """" #?????????????????????????????????????? | | "?"" #?????????????????????????????????????? | | ? ???" #?????????????????????????????????????? | | ? ???" #?????????????????????????????????????? | | ? ???" +?????????????????????????????????????? | | ? ??? #?????????????????????????????????????? | | ? ???? ??????????????????????????????????????? | | ?????????????????????????????????????????????????? | | ?????????????????????????????????????????????????? | | ?????????????????????????????????????????????????? | | ?????????????????????????????????????????????????? | | ?????????????????????????????????????????????????? | | ?????????????????????????????????????????????????? | | ?????????????????????????????????????????????????? | | ?????????????????????????????????????????????????? | | ?????????????????????????????????????????????????? | +----------------------------------------------------+ Best States ------------- Heat Dissipation 43 Energy Generation 32 Energy Capacity 525 Matter Stores 300 Matter Capacity 300 Sight Range 18 Robot Scan Range 20 Terrain Scan Density 10 ECM Strength 1 Additional Mass Support 6 Armor Coverage 300 Resistance: TH 10 Propulsion Shielding 66 Evasion (%) 64 Item Schematics ----------------- Sensor Array | -9/Materials | Hacked Robot Schematics ------------------ None Fabricated ------------ Nothing Alien Tech Used ----------------- None Achievements -------------- None Challenges ------------ None Game ------ Seed FluxHypercooledLeg Manual? 0 Play Time 01:19:52 Cumulative 58.7 hours Start 2024.04.30 @ 21:27:08 End 2024.04.30 @ 22:54:34 Sessions 1 Manual Loads 0 Difficulty Rogue Special Mode None Game No. 41 Rogue 2 Adventurer 32 Explorer 7 Win Type - Total 0 Types 0/0/0/0/0/0/0/0/0 Lore% 18 Gallery% 47 Achievement% 37 Wizard Run 0 Options --------- Layout 1 ASCII 0 Keyboard 0 Movement Numpad Keybinds 0 Fullscreen 0 Font 16/Smallcaps Map View 64x42 Zoom Use 0% Tactical HUD 1 Map Filters NONE Filters NONE Steam 1 RUN: 5c08737d-d2d1-4d09-abe7-a83871fd679a